{"text_format":"1","workbook":"xlsx","n_sheets":2,"sheets":["COTIZACION","CLIENTES"],"not_rendered":{"charts":0,"images":1,"macros":1,"external_links":0,"defined_names":6,"comments":0,"pivot_tables":0},"unopened":[],"bounds":{"document_bytes":16777216,"sheet_cells":100000,"rows_first":2000,"rows_last":500,"rows_between":2000,"halvings":0,"cell_chars":16384,"cell_head_chars":4096},"cells_cut":0,"cells_raw":0,"read":"whole","date_system":"1900"}

{"sheet":"COTIZACION","index":0,"n_rows":33,"n_cols":19,"rows_kept":33,"cut":false,"hidden":false,"merged":[[9,2,9,4],[10,2,10,4],[7,1,7,2],[4,4,4,9],[5,5,5,7],[6,5,6,7],[7,5,7,7],[11,2,11,4],[12,2,12,4],[13,2,13,4],[14,2,14,4],[15,2,15,4],[16,2,16,4],[17,2,17,4],[18,2,18,4],[19,2,19,4],[20,2,20,4],[30,3,30,4],[26,2,26,4],[21,2,21,4],[22,2,22,4],[23,2,23,4],[24,2,24,4],[25,2,25,4],[27,2,27,4]]}
[null,null,null,null,null,null,null,null,null,"COTIZACION"]
[null,null,null,null,null,null,null,null,null,2063]
[]
[null,"RUT",null,"93.654.000-7","DIRECCION",null,null,null,"TELEFONO",{"$f":"VLOOKUP(D4,CLIENTES,10,FALSE)","v":0}]
[null,null,null,null,{"$f":"VLOOKUP(D4,CLIENTES,4,FALSE)","v":"Panamericana norte 5299"}]
[null,"EMPRESA: ",null,{"$f":"VLOOKUP(D4,CLIENTES,2,FALSE)","v":"QUIMICA INDUSTRIAL SPES S.A"},"COMUNA",{"$f":"VLOOKUP(D4,CLIENTES,5,FALSE)","v":"CONCHALI"},null,null,{"$f":"VLOOKUP(D4,CLIENTES,11,FALSE)","v":"MANTENCION@SPES.CL"}]
[null,"GIRO: ",null,{"$f":"VLOOKUP(D4,CLIENTES,3,FALSE)","v":"QUIMICA"},"CIUDAD",{"$f":"VLOOKUP(D4,CLIENTES,6,FALSE)","v":"STGO"},null,null,"CONTACTO: ",{"$f":"VLOOKUP(D4,CLIENTES,8,FALSE)","v":"Critian Ruminot"}]
[null,"FORMA DE PAGO",null,{"$f":"VLOOKUP(D4,CLIENTES,7,FALSE)","v":"30 dias"},"VENDEDOR",{"$f":"VLOOKUP(D4,CLIENTES,12,FALSE)","v":"Jaime Guzman"},null,null,"FECHA",{"$f":"TODAY()","v":"2014-10-24"}]
[null,null,null,null,null,null,null,null,null,null,null,null,null,null,null,null,null,"OFERTA"]
[null,"item","Descripcion producto",null,null,"cantidad","unidad","precio","dscto","total","ITEM",null,null,null,null,"%","VENTA","VENTAFINAL"]
[null,1,"MANGUERA PVC MALLA TEXTIL 3/4\"",null,null,15,"metro",{"$f":"VLOOKUP(B11,COTIZADO,8,FALSE)","v":1372},0,{"$f":"F11*H11*(1-I11/100)","v":20580},1,1372,null,null,null,1,{"$f":"L11","v":1372},{"$f":"Q11*P11","v":1372}]
[null,2,"MANOM. 4\" INF. 0-16BAR INOX/BR 1/2\"NPT",null,null,1,"unidad",14310,0,14310,2,14310,null,null,null,1,{"$f":"L12","v":14310},{"$f":"Q12*P12","v":14310}]
[null,3,"TUERCA ENBUDO 8MM BR",null,null,20,"unidad",{"$f":"R13","v":378},0,7560,3,null,252,null,null,1.5,{"$f":"M13","v":252},378]
[null,4,"TUERCA ENBUDO 10MM BR",null,null,20,"unidad",{"$f":"R14","v":1185},0,23700,4,null,790,null,null,1.5,{"$f":"M14","v":790},1185]
[null,5,"UNION RECTA TUBO 8MM",null,null,10,"unidad",{"$f":"R15","v":715.5},0,7155,5,null,477,null,null,1.5,477,715.5]
[null,6,"UNION RECTA TUBO 10MM",null,null,10,"unidad",1033.2,0,10332,6,null,738,null,null,1.4,738,1033.2]
[null,7,null,null,null,null,null,{"$f":"R17","v":0},0,0,7,null,null,null,null,1.5,0,0,833]
[null,8,null,null,null,null,null,{"$f":"R18","v":0},0,{"$f":"F18*H18*(1-I18/100)","v":0},8,null,null,null,null,1.5,0,0]
[null,9,null,null,null,null,null,0,0,0,9,null,null,null,null,1.5,0,0]
[null,10,null,null,null,null,null,0,0,0,10,null,null,null,null,1.5,0,0]
[null,11,null,null,null,null,null,0,0,0,11,null,null,null,null,1.5,0,0]
[null,12,null,null,null,null,null,0,0,0,12,null,null,null,null,1.5,0,0]
[null,13,null,null,null,null,null,0,0,0,13,null,null,null,null,1.5,0,0]
[null,14,null,null,null,null,null,0,0,0,14,null,null,null,null,1.5,0,0]
[null,15,null,null,null,null,null,0,0,{"$f":"F25*H25*(1-I25/100)","v":0},15,null,null,null,null,1.5,0,0]
[null,16,null,null,null,null,null,0,0,0,16,null,null,null,null,1.4,0,0]
[null,17,null,null,null,null,null,0,0,0,17,null,null,null,null,1.4,0,0]
[null,18,null,null,null,null,null,0,0,0,18,null,null,null,null,1.4,0,0]
[null,"OBSERVACIONES: ",null,null,null,null,"neto",null,null,{"$f":"SUM(J11:J28)","v":83637},null,null,null,null,null,null,0]
[null,null,null,null,null,null,"dscto",null,0,{"$f":"J29*I30","v":0}]
[null,null,null,null,null,null,"subtotal",null,null,{"$f":"J29-J30","v":83637}]
[null,null,null,null,null,null,0.19,null,0.19,{"$f":"J31*I32","v":15891.03}]
[null,null,null,null,null,null,"total",null,null,{"$f":"J31+J32","v":99528.03}]

{"sheet":"CLIENTES","index":1,"n_rows":283,"n_cols":13,"rows_kept":283,"cut":false,"hidden":false,"merged":[]}
["item","RUT","EMPRESA","GIRO","DIRECCION","COMUNA","CIUDAD","FPAGO","CONTACTO","CELULAR","TELEFONO","CORREO","VENDEDOR"]
[1,"99.534.520-K","AESSEAL CHILE S.A.","SELLOS MECANICOS","Av Suecia 84, ofic 143","PROVIDENCIA","SANTIAGO",null,"Daniela Arenas",null,"2-2343022","darenas@aesseal.cl","GABRIEL"]
[2,"61.808.000-5","AGUAS ANDINAS",null,"Pintor Cicarelli,  291","SAN JOAQUIN","SANTIAGO",null,"Rodolfo Thiers",null,"2-688 1000","rthiers@aguasandinas.cl"]
[3,"96.954.690-6","AGUAS Y RILES","PROCESOS DE AGUA","Calle Nueva  # 1661","HUECHURABA","SANTIAGO",null,"Christian Salas",null,"2-580 1300","Christian.salas@aguasyriles.cl"]
[4,"84.156.500-2","ALIMENTOS FRUNA LTDA.",null,"camino a  Melipilla 11246","CERRILLOS","STGO",null,"Ivan Farias",null,"2-533 0080","i_farias@fruna.cl","hugo "]
[5,"84.156.500-2","ALIMENTOS FRUNA LTDA.",null,"Av. Americo Vespucio Norte  1361","CERRILLOS","STGO",null,"Jorge Romo",null,"2-533 8154","jromo@fruna.cl","hugo "]
[6,"78.769.930-8","ALLEN S.A.","IMPORTACIONES","EDUARDO MATTE 1830","SANTIAGO CENTRO","SANTIAGO","EFECTIVO","EMANUELLE",61593620,"2-5546037","EMREYES@ALLEN.CL","ALDO"]
[7,"96.956.680-K","ALUSA S.A ","FABRICACION  ENV. FLEXIBLES","Eduardo Frei Montalva 9160","QUILICURA","STGO","30 dias","Sebastian Zamorano",null,null,null,"Jaime Guzman"]
[8,"91.410.000-3","AMERICAN SCREW",null,"Camino Melipilla 1338","CERRILLOS","STGO",null,"Jeanette Millar",null,"2-440 7029","jeanette.millar@amscrew.cl"]
[9,"77.762.940-9","ANGLO AMERICAN",null,null,null,"STGO",null,"Guillermo Cortés",null,"2-365 8468","gfcortes@anglochile.cl"]
[10,"80.893.200-8","ARRIGONI",null,null,"HUECHURABA","STGO",null,"Claudio Valencia",null,"2-485 0000","cvalencia@arrigoni.cl","ana"]
[11,"80.893.200-8","ARRIGONI",null,"Caupolican 9550 ,","HUECHURABA","STGO",null,"Miguel Pardo",null,"2-485 0000","m.pardo@arrigoni.cl","ana"]
[12,"80.893.200-8","ARRIGONI METALURGICA",null,"Caupolican   9.550","QUILICURA","STGO",null,"Guillermo Martinez","7-579 8115","2-4850156","gmartinez@arrigoni.cl","ana"]
[13,"76.878.580-5","BOMBATEK",null,"Av. Galvarino 7701-Parque Industrial Aconcagua","QUILICURA","STGO",null,"German Pacheco Zambrano","9-434 7040","2-484 8300","gpacheco@bombatek.cl"]
[14,"91.666.000-6","CERESITA","PINTURAS","Gabriel Palma  # 820","RECOLETA","STGO",null,"Ma Soledad Gaete/Marcos Novoa",null,"2-584 9215","sgaete@ceresita.cl/ mnova@ceresita.cl"]
[15,"2.937.788-K","CESAR SANDOVAL",null,null,null,"STGO",null,null,null,null,null,"paula"]
[16,"76.178.626-1","CHILETRONICS",null,null,null,"STGO",null,null,null,null,null,"paula"]
[17,"96.801.810-8","CIMM",null,"Las Esteras Norte 2501","QUILICURA","STGO",null,"M Veronica Barrios","8-219 1565","2-586 4591","mbarrios@cimm-tys.cl"]
[18,"80.853.400-2","CLARIANT",null,"Camino  Melipilla  15170,  Maipu","CERRILLOS","STGO",null,"Norberto Galdo",null,"2-373 4100","Norberto.Galdo@clariant.com"]
[19,"90.753.000-0","CLINICA SANTA MARIA","CLINICA",null,"PROVIDENCIA","STGO",null,"Armando Jofre",null,"2-913 3280","ajofre.pintel@csm.cl+"]
[20,"96.532.330-9","CMPC CELULOSA S.A",null,null,"SANTIAGO","STGO",null,"Nelson Hidalgo",null,"2-441 2475","nhidalgo@gerencia.cmpc"]
[21,"95.304.000-K","CMPC MADERAS S.A",null,null,"SANTIAGO","STGO",null,"Geraldine Aenishanslin",null,"2-441 2569","gaenishanslin@gerencia.cmpc.cl"]
[22,"96529310-8","CMPC TISSUE S.A",null,null,null,"RANCAGUA",null,"jorge soto",null,"72-491525",null,"gabriel"]
[23,"96.974.100-8","CODEPACK",null,"Parinacota  381  -  Galpon 9  -  Modulo 9","QUILICURA","STGO",null,null,null,"2-739 0029"]
[24,"96.528.000-6","COLADA CONTINUA CHILENA",null,"Av. Las Esteras Sur N°2850","QUILICURA","STGO",null,"Manuel Rojas ","9-997 2427","2-623 8668","MROJAS@COLADACONTINUA.CL","gabriel"]
[25,"94.086.000-8","CORRUPAC",null,"La Victoria 0465","LA GRANJA","STGO",null,"Lorena Godoy Aliaga","8-920 8796","2-510 1870","lgodoy@corrupac.cl"]
[26,"90.331.000-6","CRISTALERIAS DE CHILE",null,"Av. Apoquindo 3669","LAS CONDES","STGO",null,"Ricardo Faundez",null,"2-787 8712",null,"paula"]
[27,"93.372.000-4","CRISTALERIAS TORO",null,"Calle Dagoberto Godoy   182","CERRILLOS","STGO",null,"Ricardo Munizaga",null,"2-437 4500","r.munizaga@cristoro.cl","paula"]
[28,"77.704.340-4","DAILY FRESH",null,"El Quillay 573, Pque. Ind, valle grande , ","LAMPA","STGO",null,"Cristian Barahona ","8-239 5145","2-411 9100","c.barahona@dailyfresh.cl"]
[29,"99.538.350-0","DIMENSION S.A.","MAQUINARIA",null,"LO ESPEJO","STGO",null,"Pablo Rosas","7-809 0271",null,"prosas@dimension.cl","gabriel"]
[30,"85.918.900-8","DINAGAL",null,"Sta Monica 03490 -  Puerta sur","SAN BERNARDO","STGO",null,"Adolfo Galindo",null,"2-854 2555","agalindo@dinagal.cl"]
[31,"96.824.110-9","DISAL CHILE LTDA","Arriendo, venta sanitarios portables","AV. Las Torres 6108","Peñalolen","STGO","30 dias",null,null,"2-280-8069",null,"Jaime Guzman"]
[32,"96.951.690-K","DISTRIBUIDORA SUIZA",null,"Parcela  37 abrazo de Maipu","CERRILLOS","STGO",null,"Francisco Valeria",null,"2-535 6034","bodega@disuiza.cl","ana y paula"]
[33,"78.334.740-7","DPA",null,"Ingeniero Budge  1065 ","SAN MIGUEL","STGO",null,"Pablo Urrutia",null,"2-551 4607","purrutia@dpa.cl"]
[34,"76.106.641-2","DUEIK",null,null,null,"STGO",null,"Francisco astorga",null,"2-730 0800","f.astorga@dueik.cl","gabriel"]
[35,"78.202.930-4","ELECTRO QUALITY",null,null,null,"STGO",null,null,null,null,null,"paula"]
[36,"16.265.013-0","EMANUELLE S.A.","COMERCIAL","MONSEÑOR CARLOS CASANUEVA 10417","LA FLORIDA","SANTIAGO","EFECTIVO","EMANUELLE",61593620,"2-5544250","EMREYES@ALLEN.CL","ALDO"]
[37,"96.591.040-9","EMPRESA CAROZZI",null,"Pte.Jorge Alessandri Rodriguez  5201  Nos","SAN BERNARDO","STGO",null,"Mauricio Rodriguez",null,"2-377 6719","mrodriguez@carozzi.cl"]
[38,"96.928.510-K","EMPRESAS LIPIGAS",null,null,null,"STGO",null,null,null,null,null,"paula"]
[39,"4.282.209-4","FERNANDO VIDELA",null,null,null,"STGO",null,null,null,null,null,"paula"]
[40,"99.542.980-2","FOOD CCU","ALIMENTICIA",null,"LA REINA","STGO",null,"Lucas Sanchez",null,null,null,"gabriel"]
[41,"76.107.630-2","GAS LICUADO MOTOR",null,null,null,"STGO",null,null,null,null,null,"paula"]
[42,"96.568.740-8","GASCO GLP S.A.",null,null,null,"STGO",null,null,null,null,null,"paula"]
[43,"76.142.730-K","GEMCO","FARMACEUTICA","Diagonal Paraguay  494","PROVIDENCIA","STGO",null,null,null,"2-979 9350","GEMCO@GEMCO.CL","gabriel"]
[44,"93.545.000-4","GEOTEC",null,"Lo Campino 432","QUILICURA","STGO",null,"Roberto Guajardo Muñoz","7-888 6825","2-620 7758","rguajardo@geotec.cl"]
[45,"96.828.120-8","GESTION Y SERVICIOS",null,null,null,"STGO",null,"Christian Ugatti",null,"2-496 4328","cugatti@gestionyservicios.cl"]
[46,"92.846.000-2","HARTING","QUIMICA",null,"QUILICURA","STGO",null,"Sergio Gracia/Jorge Jeldres",null,null,"panol@harting.cl/sgracia@hating.cl","gabriel"]
[47,"76.026.558-6","I&S INGENIERIA",null,"Volcan Lascar Oriente 741, Pudahuel","PUDAHUEL","STGO",null,"Jose Marín Castillo",null,"2-887 2700/10","jmarin@isventec.cl","katty"]
[48,"77.965.620-9","ICB FOOD SERVICE",null,null,null,"STGO",null,null,null,null,null,"hugo "]
[49,"76.451.180-8","IMA INDUSTRIAL LTDA. Y PROYECTO",null,"Alarife Gamboa  013, Providencia","PROVIDENCIA","STGO",null,null,null,"2-499 8200"]
[50,"77.868.830-1","IMPREVAL",null,null,null,"STGO",null,"Antonio Medina","9-490 5229","2-511 6901","impreval@hotmail.com"]
[51,"96.808.700-2","ING H. BERMAD ANDINA",null,null,null,"STGO"]
[52,"81.527.100-9","INRA REFRIGERACION","REFRACTARIOS","Camino El Villarrio-  Parcela 20","CALERA DE TANGO ","STGO",null,"Aquilez Manriquez/Jose Vasquez",null,"2-855 3020","BODEGA@INRAFRIGO.CL"]
[53,"96.877.680-0","JUAN  BAS  ALIMENTOS",null,"calle Galvarino 9601, ","QUILICURA","STGO",null,"Cristian Mejias",null,"2-490 1914",null,"hugo "]
[54,"96.843.130-7","KOMATSU",null,"Av Americo Vespucio 0631",null,"STGO",null,"Alejandro Burgos","9-827 0924","2-655 7449","alejandro.burgos@komatsu.cl"]
[55,"96.843.130-7","KOMATSU",null,null,null,"STGO",null,"Héctor Titichoca",null,"34-495150/497288","hector.titichoca@komatsu.cl"]
[56,"91.650.000-9","LABORATORIOS SAVAL","FARMACEUTICA",null,"CONCHALI","STGO",null,"Alex Bermudez","8-512 2887","2-707 3000","ABERMUDEZ@SAVAL.CL","gabriel"]
[57,"96.568.370-4","LUCCHETTI","ALIMENTICIA",null,"SAN JOAQUIN","STGO",null,"Carolina Saldias/Claudio Villagra","8-439 6430","2-599 7926","AACEVEDO@TMLUC.COM/CVILLAGRA@TMLUC.COM"]
[58,"76.009.053-0","MADECO",null,null,null,"STGO"]
[59,"76.203.160-4","MAESTRANZA HEREDIA",null,"Venus   1310","QUINTA NORMAL","STGO",null,"Carlos Heredia",null,"2-773 0993/8834","carlosheredia@herediahermanos.cl"]
[60,"78.924.940-7","MANTENCION INDUSTRIALES Y CIA.",null,null,null,"STGO",null,"Juan Parada/Marco Figueroa/Jose Perez",null,"2-8318924"]
[61,"96.967.010-0","MAQSA",null,null,null,"STGO",null,"Mauricio C Michael Fernandez","9-099 6026","2-422 9635","mmichael@maqsa.cl"]
[62,"96.532.730-4","MICROTEC S.A",null,null,null,"STGO",null,"Ariel Lopez","9-949 6214","2-424 8369","ariel.lopez@micro.cl"]
[63,"93.628.000-5","MOLYMET",null,"Camino Nos - Los Morros","SAN BERNARDO","STGO",null,0,0,"2-937 6849",0,"Jaime Guzman"]
[64,"13.047.088-2","MPF CONSTRUCTORA",null,null,null,"STGO",null,null,null,null,null,"paula"]
[65,"90.703.000-8","NESTLE  v. mackenna",null," Vic. Mackenna 4230","SAN JOAQUIN","STGO",null,"Guillermo Cereceda",null,"2-550 6425","guillermo.cereceda@cl.neltle.com","paula"]
[66,"77.868.250-8","NEW SYSTEM LTDA",null,"Calle Puerta Sur 0321 of.Parque Industrial","SAN BERNARDO","STGO",null,"Manuel Aracena",null,"2-481 1154","logistica@newvac.cl","paula"]
[67,"96.545.900-6","PANIMEX QUIMICA",null,"Av. Eduardo Frei Montalva  8710","QUILICURA","STGO",null,"Robinson Contreras",null,"2-470  4900","mantencion@panimex.cl","gabriel"]
[68,"77.830.430-9","PAREXCHILE LTDA","CEMENTO","Puerto Montt 3235","RENCA","STGO",null,"Quenet Gomero",null,"2-328 9900","quenet.gomero@parexchile.cl"]
[69,"83.574.800-6","PATRICIO LIOI Y CIA. LTDA.",null,"Los Yacimientos  561","MAIPU","STGO",null,"Hernan Herrera",null,null,null,"gabriel"]
[71,"92.154.000-0","PETROBRAS",null,null,"MAIPU","STGO",null,"Antonio","7-604 7192",null,null,"gabriel"]
[72,"93.305.000-9","PIMASA",null,"Calle Nueva   1725","HUECHURABA","STGO",null,null,null,"2-499 1000","RECEPCION@PIMASA.COM"]
[73,"83.474.400-7","PINTO Y GAJARDO  S.A.",null,null,null,"STGO",null,null,null,null,null,"paula"]
[74,"76.437.150-K","PLASTRO MINING",null,"Cerro Santa Lucia 9990","QUILICURA","STGO",null,"Antonio Martinez",null,"2-738 5300/446 4444","amartinez@johndeerewater.com","paula"]
[75,"96.833.680-0","PROD. INDUSTRIALES",null,null,null,"STGO",null,null,null,null,null,"paula"]
[76,"79.749.790-8","PROEXA",null,"Jorge Hirmas   2690","RENCA","STGO",null,"Luis Finschi"]
[77,"76.941.810-5","RED TEC","ARRIENDO DE PALETS",null,"LAMPA","STGO",null,"Elvis Herrera"]
[78,"79.897.380-0","REINIKE",null,null,"HUECHURABA","STGO",null,"Rodolfo Urquidi","9-718 0592","2-490 1895","COMPRAS@REINIKE.CL"]
[79,"77.479.980-K","RIEGO PLAS",null,"Santa Marta   1501","MAIPU","STGO",null,"Fernando Manriquez",null,null,"FMANRIQUEZ@RIEGOPLAS.CL"]
[80,"99.547.270-8","SEAL SERVICE","INSUMOS A MINERAS","Francisco Bilbao   6916","LAS CONDES","STGO",null,"Gustavo Barckhahn",null,"2-776 1048"]
[81,"77.926.810-1","SERPROGAS","GAS",null,null,"STGO",null,"Wilson Oteiza",null,null,null,"gabriel"]
[82,"80.914.400-3","SGS",null,null,null,"STGO",null,"Robinson Aliaga","9-430 2899","2-623 1828","robinson.aliaga@sgs.com"]
[83,"91.915.000-9","SIGDO KOPPERS",null,null,"LAS CONDES","STGO",null,"Sandro Tavonatti",null,"2-241 5267","sandro.tavonatti@skcchile.cl"]
[84,"91.915.000-9","SIGDO KOPPERS",null,null,"LAS CONDES","STGO",null,"Raul Maldonado",null,"2-241 5394","raul.maldonado@skcchile.cl"]
[85,"76.410.610-5","SKC MAQUINARIAS",null,null,null,"STGO"]
[86,"96.517.990-9","SKC RENTAL",null,null,null,"STGO"]
[87,"78.610.300-2","SOC.COM.VALARCO",null,null,null,"STGO",null,null,null,null,null,"paula"]
[88,"96.717.620-6","SOC.ELECTRICA STGO.",null,null,null,"STGO",null,null,null,null,null,"paula"]
[89,"76.101.812-4","SOPROLE ","ALIMENTICIA",null,"SAN BERNARDO","STGO",null,"Ramon Araya",null,null,"RAMON.ARAYA@SOPROLE.CL","gabriel"]
[90,"93.654.000-7","QUIMICA INDUSTRIAL SPES S.A","QUIMICA","Panamericana norte 5299","CONCHALI","STGO","30 dias","Critian Ruminot",null,null,"MANTENCION@SPES.CL","Jaime Guzman"]
[91,"78.737.740-8","SPRAYING SISTEMS","INSUMOS A MINERAS",null,"PROVIDENCIA","STGO",null,"Francoise Peralta","9-158 7209","2-274 7313","fperalta@ssco.cl","gabriel"]
[92,"96.906.060-4","SWEDMAQ",null,"Vista Hermosa   9999","CERRILLOS","STGO",null,"Alejandro Herrera",null,"2-538 5507","aherrera@maquinas.cl"]
[93,"79.553.940-9","TECHNO REFRACTARIOS S.A.",null,"Camino Santa Teresa   Km  19 1/2 ","LAMPA","STGO",null,"Gonzalo Cabezas",null,"2-745 3613","REFRA@IUNGE.CL"]
[94,"76.667.880-7","TECVAL",null,null,null,"STGO",null,"Mauricio Fortune","9-342 5823","2-411 6100","mfortune@tecval.cl"]
[95,"78.976.570-7","TERMOVENT",null,"El Otoño 725   -  El Tranqueral","LAMPA","STGO",null,"Fernando Cadiz Araya",null,"2-745 3441","F.CADIZ@TERMOVENT.CL"]
[96,"96.895.560-8","TPI",null,"Panamericana Norte   9301","QUILICURA","STGO",null,"Patricio Villalobos","9-289 1707","2-463 8000"]
[97,"96.858.280-1","TRANSITAL ASSA",null,"Pedro Aguirre Cerda  6697","CERRILLOS","STGO",null,"Carlos Sensacua",null,null,null,"gabriel"]
[98,"79.918.390-0","TRIO S.A.","ALIMENTICIA","Calle Esquina Blanca  1117","MAIPU","STGO",null,"Rodolfo Araya/Nestor Segovia",null,null,"RARAYA@TRIOGROUP.CL","gabriel"]
[99,"96.531.390-7","VIÑA  SANTA EMA",null,"Izaga 1096   y la bodega en Balmaceda 1950","ISLA DE MAIPO","STGO",null,"Hector de La Cuadra  / Pedro Astorga",null,"2-663 7110/1096","hdelac@santaema.cl","paula"]
[100,"93.899.000-K","VITAL S.A.","ALIMENTICIA",null,"PUDAHUEL","STGO",null,"Carlos Maureira","7-988 4168",null,null,"ana"]
[101,"93.913.000-4","VOGT",null,"Álvarez  de Toledo Nº 669 ","SAN MIGUEL","STGO",null,"Carlos Acevedo",null,"2-829 1200","carlos.acevedo@vogt.cl"]
[102,"84.356.800-9","WATTS   Lonquén",null,null,"SAN BERNARDO","STGO",null,"Victor Santibañez",null,"02-441 4111","vsantiba@watts.cl","hugo "]
[103,"88.325.800-2","XTRATA COPPERS",null,null,null,"STGO"]
[104,"96.953.700-1","XTREME MINING","MAQUINARIA","Panamericana Norte   9500 ","QUILICURA","STGO",null,"Alejandro ","7-775 7806","2-912 3110",null,"ana y paula"]
[105,"77.524.300-7","Fibrocementos Volcan LTDA","Fabricantes de paneles de yeso para la construccion",null,null,"STGO","30 dias",null,null,"2-483 0500",null,"Jaime Guzman"]
[106,"94.507.000-5","GRASAS COMERCIALES GRASCO S.A","GRASAS COMERCIALES ","Lago Llanquihue 02925","SAN BERNARDO","STGO","30 dias","Jose Mateluna",null,null,null,"Jaime Guzman"]
[108,"82.136.800-6","BLASMAR S.A","MANUFACTURA DE CAUCHO","AV. Concha y Toro 0538","Puente Alto","STGO","30 dias","Cristian Caro",null,null,"compras@blasmar.cl","Jaime Guzman"]
[109," 96.927.190-7","Prefabricados De Hormigon Grau S A",null," Avenida Las Acacias 02359 San Bernardo","SAN BERNARDO","STGO",null,null,null,null,null,"Jaime Guzman"]
[110,"76.940.900-9","PROMINENT CHILE S.A","Distribucion de productos, equipos y sistemas de bombeo y otros","Lota 2250","PROVIDENCIA","STGO","30 dias",null,null,null,null,"Jaime Guzman"]
[111,"0000000-0","SIHI CHILE S.A.",null,null,null,"STGO",null,null,null,null,null,"Jaime Guzman"]
[112," 96.815.800-7","Hortifruticola Apostoles S A",null,null,"CALERA DE TANGO ","STGO","30 dias","Eduardo Peña",null,null,null,"Jaime Guzman"]
[113,"91.619.000-K","VULCO S.A.",null,"San José 0815","SAN BERNARDO","STGO","30 dias","Eduardo Fernandez",null,null,null,"Jaime Guzman"]
[114,"76.057.769-3","Mylpan","Comercializadora De Productos Alimenticios ","Calle Fresia 1685","LA PINTANA","STGO",null,"Juan Viacava",null,null,null,"Jaime Guzman"]
[115,"76.066.393-k","INDUFAN",null,"CAMINO EL OTOÑO 524","LAMPA","STGO","30 dias","Angelica Poblete",null,null,null,"Jaime Guzman"]
[116,"99.523.020-8","SMURFIT KAPPA",null,"Avenida El Roble 430","LAMPA","STGO","30 dias","Fabian Cisterna",null,null,null,"Jaime Guzman"]
[117,"96.548.020-K","Plasticos Hoffens S.A.",null,"Camino Lonquén 10707 Maipú","LAMPA","STGO","30 dias",null,null,27267600,null,"Jaime Guzman"]
[118,"76.119.096-2","Comercializadora Forca Chile S.A","Comercializadora ","Eliodoro Yañez 2331","PROVIDENCIA","STGO","30 dias","Marisol Olivares ",null,null,null,"Jaime Guzman"]
[119,"96.920.980-2","Winpack",null,"Santa Elena de Huechuraba 1175","HUECHURABA","STGO","30 dias",null,null,null,null,"Jaime Guzman"]
[120,"96.721.360-8","GAS ANDES",0,0,0,0,0,"Jorge Betancourt",0,0,null,"Jaime Guzman"]
[121,"96.767.690-K","The Synergy Group S A",null," Avenida Américo Vespucio 2760-B","CONCHALI","STGO","30 dias","Marcos Villalon",null,null,null,"Jaime Guzman"]
[122,"76.180.068-K","SIF S.A","Servicio de proceso de frutas frescas","General Urrutia 104","SAN BERNARDO","STGO","30 dias","Luis Ñanco",null,null,null,"Jaime Guzman"]
[123,"000.000.000","SOLUMIN",null,null,null,null,null,"Cristian Vilches",null,null,null,"Jaime Guzman"]
[125,"0.0","Maestranza  METSA Vifama.",null,null,null,null,null,null,null,null,null,"Jaime Guzman"]
[126,"77.017.510-0","TECNIPAK",null,"Avenida Colorado 700","QUILICURA","STGO","30 dias",null,null,null,null,"Jaime Guzman"]
[126,"0-0-0","PATRICIO BRITO",null,null,"LA PINTANA","STGO","30 dias","PATRICIO BRITO",null,null,null,"Jaime Guzman"]
[127,"88.534.100-4","Casagrande Motori Limitada","MANTENIMIENTO Y REPARACION DE VEHICULOS AUTOMORES","CARMEN 935 ","SANTIAGO","STGO","30 dias","Claudia Gonzalez",null,null,null,"Jaime Guzman"]
[128,"0000-0000","AB Arriendos",null," .   ",null,"STGO",null,null,null,null,null,"Jaime Guzman"]
[129,"76.105.101-6","Comercial Sirian Ltda","Ferretería industrial",null,null,"PUETO MONTT",null,"Danilo Ojeda",null,null,null,"Jaime Guzman"]
[130,"96.755.580-0","WALMART CHILE",null,"Ojos del salado 0781-A","QUILICURA","STGO","30 Dias","Cristopher Ilabaca",null,null,null,"Jaime Guzman"]
[131,"11111-1","PERFIMET",null,"Camino Lonquen 9031","MAIPU","STGO",null,"Marcelo Lagos",null,null,null,"Jaime Guzman"]
[133,"80.889.200-6","ALSTOM",null,null,"PUENTE ALTO","STGO","30 dias","Jorge Soto",null,null,null,"Jaime Guzman"]
[134,"96.998.510-1","CAMILO FERRON CHILE S.A",null,null,null,"STGO","30 dias","MIGUEL BRAVO",null,null,null,"Jaime Guzman"]
[135,"76.137.989-5","MAR Ingeníeria y Servicios","Ingeníeria y Servicios","COCHRANE 639 OFICINA 69","VALPARAISO ",null,null,"Eliseo Cortes",null,"(56-32 ) 2256410",null,"Jaime Guzman"]
[136,"11.111.111-1","AGROSYSTEM",null,null,null,null,null,"ENRIQUE COSTA",null,null,null,"Jaime Guzman"]
[137,0,"INTEGRA LTDA.",null,null,null,null,null,"GIRO SANCHEZ",null,null,null,"Jaime Guzman"]
[138,"13.731.262-K","Hector Carmona",null,null,null,null,null,"Hector Carmona V.",null,null,null,"Jaime Guzman"]
[139,"93.933.000-3","Sociedad Petreos S.A","HORMIGON","EL BOSQUE NORTE 0177 PISO 5","LAS CONDES","STGO",null,"Claudio Rojas",null,null,null,"Jaime Guzman"]
[140,"77.095.040-6","AUBS CLINIC",null,null,null,null,null,"Giselle Gonzales",null,null,null,"Jaime Guzman"]
[141,"76.712.920-3","MININGPARTS",null,null,null,null,null,"Juan Parra",null,null,null,"Jaime Guzman"]
[142]
[143]
[144]
[145]
[146]
[147]
[148]
[149]
[150]
[151]
[152]
[153]
[154]
[155]
[156]
[157]
[158]
[159]
[160]
[161]
[162]
[163]
[164]
[165]
[166]
[167]
[168]
[169]
[170]
[171]
[172]
[173]
[174]
[175]
[176]
[177]
[178]
[179]
[180]
[181]
[182]
[183]
[184]
[185]
[186]
[187]
[188]
[189]
[190]
[191]
[192]
[193]
[194]
[195]
[196]
[197]
[198]
[199]
[200]
[201]
[202]
[203]
[204]
[205]
[206]
[207]
[208]
[209]
[210]
[211]
[212]
[213]
[214]
[215]
[216]
[217]
[218]
[219]
[220]
[221]
[222]
[223]
[224]
[225]
[226]
[227]
[228]
[229]
[230]
[231]
[232]
[233]
[234]
[235]
[236]
[237]
[238]
[239]
[240]
[241]
[242]
[243]
[244]
[245]
[246]
[247]
[248]
[249]
[250]
[251]
[252]
[253]
[254]
[255]
[256]
[257]
[258]
[259]
[260]
[261]
[262]
[263]
[264]
[265]
[266]
[267]
[268]
[269]
[270]
[271]
[272]
[273]
[274]
[275]
[276]
[277]
[278]
[279]
[280]
[281]
[282]
[283]
[284]
[285]